[Event "*** Titled Tuesday Blitz"]
[Site "Chess.com"]
[Date "2018.12.04"]
[Round "10"]
[White "Quiet_Desperation"]
[Black "amiralfio"]
[Result "0-1"]
[WhiteElo "2157"]
[BlackElo "2450"]
[TimeControl "180+2"]
[EndTime "15:22:45 PST"]
[Termination "amiralfio won by checkmate"]

1. e4 {[%clk 0:03:01.9]} 1... c5 {[%clk 0:02:53.6]} 2. d4 {[%clk 0:03:01]} 2...
cxd4 {[%clk 0:02:54.3]} 3. c3 {[%clk 0:03:02.2]} 3... Nf6 {[%clk 0:02:55.7]} 4.
e5 {[%clk 0:03:03]} 4... Nd5 {[%clk 0:02:57.2]} 5. Nf3 {[%clk 0:03:04.9]} 5...
Nc6 {[%clk 0:02:55.4]} 6. Bc4 {[%clk 0:03:05.9]} 6... Nb6 {[%clk 0:02:56.1]} 7.
Bb3 {[%clk 0:03:07]} 7... d5 {[%clk 0:02:54.6]} 8. cxd4 {[%clk 0:03:06.6]} 8...
Bg4 {[%clk 0:02:54.4]} 9. Be3 {[%clk 0:03:07.7]} 9... e6 {[%clk 0:02:54.9]} 10.
h3 {[%clk 0:03:08.8]} 10... Bh5 {[%clk 0:02:49.3]} 11. Nbd2 {[%clk 0:03:10]}
11... Be7 {[%clk 0:02:48.7]} 12. Nf1 {[%clk 0:03:10.2]} 12... Na5 {[%clk
0:02:45.6]} 13. Bc2 {[%clk 0:03:05.8]} 13... Nac4 {[%clk 0:02:39.3]} 14. Rb1
{[%clk 0:03:05.6]} 14... Bb4+ {[%clk 0:02:39.1]} 15. N1d2 {[%clk 0:03:00.6]}
15... Nxe3 {[%clk 0:02:35.8]} 16. fxe3 {[%clk 0:03:01.7]} 16... Bxf3 {[%clk
0:02:36.7]} 17. Qxf3 {[%clk 0:02:58.6]} 17... Nc4 {[%clk 0:02:37.8]} 18. Rd1
{[%clk 0:02:55.6]} 18... Nxd2 {[%clk 0:02:29.4]} 19. Rxd2 {[%clk 0:02:50.9]}
19... Bxd2+ {[%clk 0:02:28.3]} 20. Kxd2 {[%clk 0:02:51.7]} 20... Rc8 {[%clk
0:02:27.4]} 21. Ba4+ {[%clk 0:02:51.4]} 21... Ke7 {[%clk 0:01:56]} 22. Bb3
{[%clk 0:02:45.8]} 22... a5 {[%clk 0:01:51.3]} 23. Rf1 {[%clk 0:02:44.9]} 23...
Rf8 {[%clk 0:01:52]} 24. Qg3 {[%clk 0:02:38.8]} 24... g6 {[%clk 0:01:15.6]} 25.
Ba4 {[%clk 0:02:21]} 25... f5 {[%clk 0:01:02.7]} 26. Qh4+ {[%clk 0:02:16.7]}
26... g5 {[%clk 0:00:53.8]} 27. Qxg5+ {[%clk 0:02:07.4]} 27... Kf7 {[%clk
0:00:54.5]} 28. Qh5+ {[%clk 0:01:58.9]} 28... Kg7 {[%clk 0:00:54]} 29. g4 {[%clk
0:01:43.1]} 29... Qb6 {[%clk 0:00:50.7]} 30. Bb3 {[%clk 0:01:27.1]} 30... a4
{[%clk 0:00:34.8]} 31. gxf5 {[%clk 0:01:26.4]} 31... axb3 {[%clk 0:00:35.9]} 32.
Rg1+ {[%clk 0:00:58.2]} 32... Kh8 {[%clk 0:00:36.3]} 33. Qh6 {[%clk 0:00:43.4]}
33... Qc7 {[%clk 0:00:32.7]} 34. f6 {[%clk 0:00:25.5]} 34... Rg8 {[%clk
0:00:19.6]} 35. Rxg8+ {[%clk 0:00:18.8]} 35... Rxg8 {[%clk 0:00:20.6]} 36. axb3
{[%clk 0:00:20]} 36... Rg2+ {[%clk 0:00:21]} 37. Kd1 {[%clk 0:00:16.5]} 37...
Qc2+ {[%clk 0:00:22]} 38. Ke1 {[%clk 0:00:17.4]} 38... Qc1# {[%clk 0:00:23.6]}
0-1

[Event "*** Titled Tuesday Blitz"]
[Site "Chess.com"]
[Date "2018.12.04"]
[Round "10"]
[White "TregubovP"]
[Black "Winehouse83"]
[Result "0-1"]
[WhiteElo "2518"]
[BlackElo "2459"]
[TimeControl "180+2"]
[EndTime "15:22:46 PST"]
[Termination "Winehouse83 won by checkmate"]

1. d4 {[%clk 0:03:00.9]} 1... Nf6 {[%clk 0:03:00.8]} 2. c4 {[%clk 0:03:01.4]}
2... g6 {[%clk 0:03:02.2]} 3. g3 {[%clk 0:03:02.2]} 3... Bg7 {[%clk 0:03:03.7]}
4. Bg2 {[%clk 0:03:03.8]} 4... O-O {[%clk 0:03:05.2]} 5. Nc3 {[%clk 0:03:05.3]}
5... d6 {[%clk 0:03:06.9]} 6. Nf3 {[%clk 0:03:06.6]} 6... Nbd7 {[%clk
0:03:07.8]} 7. O-O {[%clk 0:03:08]} 7... e5 {[%clk 0:03:09.4]} 8. e4 {[%clk
0:03:09.3]} 8... c6 {[%clk 0:03:10.7]} 9. b3 {[%clk 0:03:08.6]} 9... Re8 {[%clk
0:02:53.2]} 10. d5 {[%clk 0:03:09.7]} 10... Nc5 {[%clk 0:02:50.4]} 11. Ne1
{[%clk 0:03:08.6]} 11... a5 {[%clk 0:02:50.2]} 12. Nd3 {[%clk 0:03:08.7]} 12...
Nxd3 {[%clk 0:02:46.2]} 13. Qxd3 {[%clk 0:03:09.3]} 13... c5 {[%clk 0:02:00.9]}
14. a3 {[%clk 0:02:59.6]} 14... Bd7 {[%clk 0:02:00.1]} 15. Bd2 {[%clk
0:02:53.4]} 15... Qc7 {[%clk 0:01:57.5]} 16. Rab1 {[%clk 0:02:49.4]} 16... Reb8
{[%clk 0:01:55.1]} 17. f4 {[%clk 0:02:42]} 17... exf4 {[%clk 0:01:44]} 18. gxf4
{[%clk 0:02:43]} 18... Ng4 {[%clk 0:01:45.1]} 19. Qe2 {[%clk 0:02:25.9]} 19...
Re8 {[%clk 0:01:37.1]} 20. h3 {[%clk 0:02:24.6]} 20... Nh6 {[%clk 0:01:37.4]}
21. Qd3 {[%clk 0:01:39.4]} 21... f5 {[%clk 0:01:33.2]} 22. e5 {[%clk 0:01:38.9]}
22... dxe5 {[%clk 0:01:29.1]} 23. d6 {[%clk 0:01:38.5]} 23... Qd8 {[%clk
0:01:13.9]} 24. fxe5 {[%clk 0:01:32.9]} 24... Rxe5 {[%clk 0:01:10.3]} 25. Nd5
{[%clk 0:01:15.9]} 25... Qh4 {[%clk 0:00:57.8]} 26. Bc3 {[%clk 0:01:08]} 26...
Rae8 {[%clk 0:00:48.8]} 27. Ne7+ {[%clk 0:01:04.5]} 27... Kh8 {[%clk 0:00:34.4]}
28. Bxe5 {[%clk 0:00:54.9]} 28... Bxe5 {[%clk 0:00:34.8]} 29. Rbe1 {[%clk
0:00:56.5]} 29... Bd4+ {[%clk 0:00:33.9]} 30. Kh1 {[%clk 0:00:57.7]} 30... Ng4
{[%clk 0:00:35]} 31. Re2 {[%clk 0:00:41]} 31... Nf2+ {[%clk 0:00:21.5]} 32.
Rfxf2 {[%clk 0:00:40.7]} 32... Bxf2 {[%clk 0:00:23.4]} 33. Qd5 {[%clk
0:00:35.6]} 33... Qf4 {[%clk 0:00:22.6]} 34. Qf7 {[%clk 0:00:06.7]} 34... Qc1+
{[%clk 0:00:21.2]} 35. Kh2 {[%clk 0:00:07.9]} 35... Qg1# {[%clk 0:00:22.2]} 0-1

[Event "*** Titled Tuesday Blitz"]
[Site "Chess.com"]
[Date "2018.12.04"]
[Round "10"]
[White "CaptainCasanova"]
[Black "AliKa2810"]
[Result "1-0"]
[WhiteElo "2663"]
[BlackElo "2498"]
[TimeControl "180+2"]
[EndTime "15:22:56 PST"]
[Termination "CaptainCasanova won by resignation"]

1. e4 {[%clk 0:02:58.4]} 1... e5 {[%clk 0:02:59.7]} 2. Nf3 {[%clk 0:02:59.2]}
2... Nf6 {[%clk 0:03:01.3]} 3. Nxe5 {[%clk 0:02:56.6]} 3... d6 {[%clk
0:03:02.9]} 4. Nd3 {[%clk 0:02:57.7]} 4... Nxe4 {[%clk 0:03:03.9]} 5. Qe2 {[%clk
0:02:57.5]} 5... Qe7 {[%clk 0:03:05.1]} 6. Nf4 {[%clk 0:02:57.3]} 6... c6 {[%clk
0:02:56.9]} 7. d3 {[%clk 0:02:54.7]} 7... Nf6 {[%clk 0:02:56.6]} 8. Be3 {[%clk
0:02:56.1]} 8... g6 {[%clk 0:02:55.7]} 9. Nc3 {[%clk 0:02:54.7]} 9... Bg7 {[%clk
0:02:57.3]} 10. O-O-O {[%clk 0:02:39.6]} 10... O-O {[%clk 0:02:58.4]} 11. h3
{[%clk 0:02:40.3]} 11... b5 {[%clk 0:02:53.5]} 12. g4 {[%clk 0:02:40.2]} 12...
b4 {[%clk 0:02:51]} 13. Bd4 {[%clk 0:02:20]} 13... Qb7 {[%clk 0:02:22.4]} 14.
Ne4 {[%clk 0:02:10.6]} 14... Nxe4 {[%clk 0:02:17.6]} 15. dxe4 {[%clk 0:02:12.5]}
15... Bh6 {[%clk 0:02:13]} 16. Be3 {[%clk 0:02:12.1]} 16... Qe7 {[%clk
0:02:06.3]} 17. f3 {[%clk 0:01:51.5]} 17... Bg7 {[%clk 0:01:59.8]} 18. Kb1
{[%clk 0:01:48.2]} 18... Nd7 {[%clk 0:01:59.2]} 19. h4 {[%clk 0:01:46.9]} 19...
Nb6 {[%clk 0:01:58]} 20. h5 {[%clk 0:01:47.9]} 20... Na4 {[%clk 0:01:58.6]} 21.
hxg6 {[%clk 0:01:42.1]} 21... fxg6 {[%clk 0:01:57.3]} 22. Qc4+ {[%clk
0:01:25.1]} 22... d5 {[%clk 0:01:57.4]} 23. Qxc6 {[%clk 0:00:53.7]} 23... Nxb2
{[%clk 0:01:40.1]} 24. Nxd5 {[%clk 0:00:43]} 24... Qb7 {[%clk 0:01:13.8]} 25.
Qxb7 {[%clk 0:00:22.7]} 25... Bxb7 {[%clk 0:01:14.8]} 26. Ne7+ {[%clk
0:00:24.6]} 26... Kf7 {[%clk 0:01:14.4]} 27. Rd7 {[%clk 0:00:24.7]} 27... Rfd8
{[%clk 0:00:29.5]} 28. Rxb7 {[%clk 0:00:18.6]} 28... Rd1+ {[%clk 0:00:31.1]} 29.
Bc1 {[%clk 0:00:19.9]} 29... Na4 {[%clk 0:00:32.6]} 30. Bc4+ {[%clk 0:00:19.9]}
30... Kf8 {[%clk 0:00:32.1]} 31. Rxd1 {[%clk 0:00:18.1]} 31... Nc3+ {[%clk
0:00:32.5]} 32. Kb2 {[%clk 0:00:20]} 32... Nxd1+ {[%clk 0:00:32.8]} 33. Kb3
{[%clk 0:00:21.9]} 33... a5 {[%clk 0:00:30]} 34. Nxg6+ {[%clk 0:00:18.1]} 34...
hxg6 {[%clk 0:00:28.2]} 35. Rf7+ {[%clk 0:00:19.6]} 35... Ke8 {[%clk 0:00:28.1]}
36. Rxg7 {[%clk 0:00:20.9]} 36... a4+ {[%clk 0:00:16.1]} 37. Kxb4 {[%clk
0:00:21.7]} 37... Rb8+ {[%clk 0:00:17.8]} 38. Bb5+ {[%clk 0:00:21.7]} 38... Kf8
{[%clk 0:00:17.7]} 39. Bh6 {[%clk 0:00:23.2]} 1-0

[Event "*** Titled Tuesday Blitz"]
[Site "Chess.com"]
[Date "2018.12.04"]
[Round "10"]
[White "artichaud"]
[Black "saraswathii"]
[Result "0-1"]
[WhiteElo "2143"]
[BlackElo "2262"]
[TimeControl "180+2"]
[EndTime "15:22:59 PST"]
[Termination "saraswathii won on time"]

1. d4 {[%clk 0:03:01.9]} 1... Nc6 {[%clk 0:03:00.3]} 2. Nf3 {[%clk 0:03:02.1]}
2... d6 {[%clk 0:03:00.9]} 3. Bf4 {[%clk 0:03:01.1]} 3... Nf6 {[%clk 0:03:01]}
4. e3 {[%clk 0:02:55.4]} 4... g6 {[%clk 0:03:00.9]} 5. h3 {[%clk 0:02:55.3]}
5... Bg7 {[%clk 0:03:01.1]} 6. Bb5 {[%clk 0:02:51.3]} 6... O-O {[%clk
0:03:00.8]} 7. O-O {[%clk 0:02:51.2]} 7... a6 {[%clk 0:03:00.7]} 8. Bxc6 {[%clk
0:02:51.4]} 8... bxc6 {[%clk 0:03:01.2]} 9. c4 {[%clk 0:02:49.4]} 9... Bb7
{[%clk 0:02:59.6]} 10. Nc3 {[%clk 0:02:48.4]} 10... a5 {[%clk 0:02:54.3]} 11.
Rc1 {[%clk 0:02:47.6]} 11... Qd7 {[%clk 0:02:53.9]} 12. Bh2 {[%clk 0:02:44.1]}
12... Rfe8 {[%clk 0:02:52.6]} 13. Na4 {[%clk 0:02:42.1]} 13... Ne4 {[%clk
0:02:43.2]} 14. Qc2 {[%clk 0:02:39]} 14... f5 {[%clk 0:02:43.1]} 15. Nd2 {[%clk
0:02:22.2]} 15... c5 {[%clk 0:02:34.7]} 16. Nf3 {[%clk 0:01:35.5]} 16... cxd4
{[%clk 0:02:25.2]} 17. exd4 {[%clk 0:01:36.7]} 17... e5 {[%clk 0:02:17.9]} 18.
Rfd1 {[%clk 0:01:31.1]} 18... exd4 {[%clk 0:02:12.1]} 19. Nxd4 {[%clk
0:01:30.3]} 19... Qe7 {[%clk 0:02:08.4]} 20. f3 {[%clk 0:01:18.5]} 20... Qg5
{[%clk 0:01:43.7]} 21. Kh1 {[%clk 0:00:49.2]} 21... Bxd4 {[%clk 0:01:35.4]} 22.
Rxd4 {[%clk 0:00:42.1]} 22... Nf2+ {[%clk 0:01:35.3]} 23. Kg1 {[%clk 0:00:29.7]}
23... Nxh3+ {[%clk 0:01:35.7]} 24. Kf1 {[%clk 0:00:30.6]} 24... Qf6 {[%clk
0:01:25.8]} 25. Rcd1 {[%clk 0:00:21.3]} 25... Ng5 {[%clk 0:01:23.1]} 26. c5
{[%clk 0:00:20.7]} 26... Ne6 {[%clk 0:01:11.8]} 27. R4d2 {[%clk 0:00:15.8]}
27... d5 {[%clk 0:01:02.6]} 28. c6 {[%clk 0:00:14.9]} 28... Ba6+ {[%clk
0:01:02.9]} 29. Kg1 {[%clk 0:00:16.6]} 29... d4 {[%clk 0:01:02.2]} 30. Nc5
{[%clk 0:00:13.5]} 30... d3 {[%clk 0:01:01.5]} 31. Nxd3 {[%clk 0:00:06.4]} 31...
Nd4 {[%clk 0:01:01.6]} 32. Qc5 {[%clk 0:00:02.7]} 32... Rad8 {[%clk 0:00:34.2]}
33. Ne5 {[%clk 0:00:03.6]} 33... Ne6 {[%clk 0:00:24]} 34. Rxd8 {[%clk
0:00:02.3]} 34... Rxd8 {[%clk 0:00:21.9]} 35. Rxd8+ {[%clk 0:00:03.1]} 35...
Qxd8 {[%clk 0:00:23.8]} 0-1

[Event "*** Titled Tuesday Blitz"]
[Site "Chess.com"]
[Date "2018.12.04"]
[Round "10"]
[White "LuisFSiles"]
[Black "TheBigBadChessDad"]
[Result "1-0"]
[WhiteElo "2234"]
[BlackElo "2266"]
[TimeControl "180+2"]
[EndTime "15:23:05 PST"]
[Termination "LuisFSiles won by resignation"]

1. e4 {[%clk 0:03:01.9]} 1... e5 {[%clk 0:03:00.8]} 2. Nf3 {[%clk 0:02:59.5]}
2... Nc6 {[%clk 0:03:02]} 3. Bc4 {[%clk 0:03:00]} 3... Bc5 {[%clk 0:03:02.4]} 4.
O-O {[%clk 0:03:00.2]} 4... Nf6 {[%clk 0:03:00.6]} 5. d4 {[%clk 0:03:00.7]} 5...
Bxd4 {[%clk 0:03:01.6]} 6. Nxd4 {[%clk 0:02:59.8]} 6... Nxd4 {[%clk 0:03:02.7]}
7. Bg5 {[%clk 0:03:00.1]} 7... d6 {[%clk 0:03:02.6]} 8. f4 {[%clk 0:02:56.9]}
8... Be6 {[%clk 0:02:54.7]} 9. Na3 {[%clk 0:02:53.6]} 9... Rg8 {[%clk
0:02:21.1]} 10. c3 {[%clk 0:02:43.4]} 10... Nc6 {[%clk 0:02:01.1]} 11. Bd5
{[%clk 0:02:35.2]} 11... h6 {[%clk 0:01:48]} 12. Bxf6 {[%clk 0:01:31.7]} 12...
Qxf6 {[%clk 0:01:38.5]} 13. fxe5 {[%clk 0:01:27.8]} 13... Qxe5 {[%clk 0:01:34]}
14. Nc4 {[%clk 0:01:28.6]} 14... Qg5 {[%clk 0:01:30.1]} 15. b4 {[%clk
0:00:46.8]} 15... Bxd5 {[%clk 0:01:04.5]} 16. exd5 {[%clk 0:00:46.5]} 16... Ne5
{[%clk 0:01:04.9]} 17. Qa4+ {[%clk 0:00:24.8]} 17... Kf8 {[%clk 0:01:03.4]} 18.
Nxe5 {[%clk 0:00:21.3]} 18... Qxe5 {[%clk 0:00:59.8]} 19. Qd7 {[%clk 0:00:20.4]}
19... Qe7 {[%clk 0:00:55]} 20. Rxf7+ {[%clk 0:00:19.3]} 20... Qxf7 {[%clk
0:00:51.9]} 21. Rf1 {[%clk 0:00:20.6]} 21... Qxf1+ {[%clk 0:00:50.8]} 22. Kxf1
{[%clk 0:00:21.9]} 22... g5 {[%clk 0:00:33.3]} 23. Qxc7 {[%clk 0:00:21.7]} 23...
Rg7 {[%clk 0:00:27.2]} 24. Qxd6+ {[%clk 0:00:21.7]} 24... Kg8 {[%clk 0:00:28.7]}
25. Qxh6 {[%clk 0:00:19.6]} 25... Rf8+ {[%clk 0:00:28.4]} 26. Kg1 {[%clk
0:00:20.4]} 26... g4 {[%clk 0:00:28.4]} 27. Qe6+ {[%clk 0:00:20.3]} 27... Kh7
{[%clk 0:00:29]} 28. d6 {[%clk 0:00:18]} 28... Rff7 {[%clk 0:00:29.5]} 29. c4
{[%clk 0:00:17.9]} 29... b6 {[%clk 0:00:30.9]} 30. c5 {[%clk 0:00:19.1]} 30...
bxc5 {[%clk 0:00:31.5]} 31. bxc5 {[%clk 0:00:20.3]} 31... Rf8 {[%clk 0:00:16.4]}
32. c6 {[%clk 0:00:10.7]} 32... Rgf7 {[%clk 0:00:17.7]} 33. Qe4+ {[%clk
0:00:11.5]} 33... Kh6 {[%clk 0:00:18.1]} 34. Qe3+ {[%clk 0:00:12.3]} 34... Kh5
{[%clk 0:00:19]} 35. Qe2 {[%clk 0:00:11.9]} 35... Rb8 {[%clk 0:00:17.7]} 36. h3
{[%clk 0:00:12.3]} 36... Rb1+ {[%clk 0:00:15.1]} 37. Kh2 {[%clk 0:00:13.5]}
37... Rf4 {[%clk 0:00:14.5]} 38. hxg4+ {[%clk 0:00:13.6]} 38... Kh4 {[%clk
0:00:15.5]} 39. g3+ {[%clk 0:00:14]} 1-0

[Event "*** Titled Tuesday Blitz"]
[Site "Chess.com"]
[Date "2018.12.04"]
[Round "10"]
[White "chesstatour"]
[Black "nochewycandy"]
[Result "0-1"]
[WhiteElo "2079"]
[BlackElo "2269"]
[TimeControl "180+2"]
[EndTime "15:23:06 PST"]
[Termination "nochewycandy won on time"]

1. c4 {[%clk 0:03:01.9]} 1... g6 {[%clk 0:02:57.7]} 2. Nc3 {[%clk 0:03:02.4]}
2... Bg7 {[%clk 0:02:59.6]} 3. e4 {[%clk 0:03:02.2]} 3... c5 {[%clk 0:02:59.2]}
4. Nf3 {[%clk 0:03:00.2]} 4... Nc6 {[%clk 0:02:59.9]} 5. d3 {[%clk 0:03:01.5]}
5... d6 {[%clk 0:02:58.7]} 6. Be2 {[%clk 0:03:03]} 6... e6 {[%clk 0:03:00]} 7.
O-O {[%clk 0:03:04.6]} 7... Nge7 {[%clk 0:03:01.2]} 8. Be3 {[%clk 0:03:06]} 8...
O-O {[%clk 0:03:02]} 9. d4 {[%clk 0:03:07.4]} 9... cxd4 {[%clk 0:02:55.4]} 10.
Nxd4 {[%clk 0:03:07.6]} 10... a6 {[%clk 0:02:55.9]} 11. Rc1 {[%clk 0:02:56.5]}
11... Nxd4 {[%clk 0:02:35.2]} 12. Bxd4 {[%clk 0:02:58.4]} 12... Bxd4 {[%clk
0:02:36]} 13. Qxd4 {[%clk 0:02:58.6]} 13... Nc6 {[%clk 0:02:37.9]} 14. Qe3
{[%clk 0:02:18.4]} 14... e5 {[%clk 0:02:29.4]} 15. Rfd1 {[%clk 0:02:08.9]} 15...
Be6 {[%clk 0:02:30]} 16. b3 {[%clk 0:02:04.8]} 16... Qe7 {[%clk 0:02:27.5]} 17.
Rd2 {[%clk 0:01:54.2]} 17... Rfd8 {[%clk 0:02:26]} 18. Rcd1 {[%clk 0:01:54.9]}
18... Rac8 {[%clk 0:02:25.8]} 19. Bf3 {[%clk 0:01:38]} 19... Nd4 {[%clk
0:02:26.4]} 20. Ne2 {[%clk 0:01:35.7]} 20... Nc6 {[%clk 0:02:23.6]} 21. g3
{[%clk 0:01:23.9]} 21... Rc7 {[%clk 0:02:23.5]} 22. b4 {[%clk 0:01:06.1]} 22...
Bxc4 {[%clk 0:02:10.5]} 23. a3 {[%clk 0:01:00.7]} 23... Bxe2 {[%clk 0:02:11.5]}
24. Bxe2 {[%clk 0:00:53.7]} 24... Nd4 {[%clk 0:02:10.5]} 25. Rxd4 {[%clk
0:00:52.9]} 25... exd4 {[%clk 0:02:08.9]} 26. Qxd4 {[%clk 0:00:53.9]} 26... Rcd7
{[%clk 0:01:34.1]} 27. Bc4 {[%clk 0:00:53.4]} 27... Qe5 {[%clk 0:01:31.3]} 28.
Qe3 {[%clk 0:00:40.3]} 28... Rc7 {[%clk 0:01:22.3]} 29. Bd5 {[%clk 0:00:14]}
29... Qc3 {[%clk 0:01:09.4]} 30. Qb6 {[%clk 0:00:12.4]} 30... Qc2 {[%clk
0:00:59.2]} 31. Rf1 {[%clk 0:00:11]} 31... Rdd7 {[%clk 0:00:53.5]} 32. a4 {[%clk
0:00:06.4]} 32... Qxa4 {[%clk 0:00:51]} 33. Qd4 {[%clk 0:00:05.1]} 33... Qc2
{[%clk 0:00:49]} 34. h4 {[%clk 0:00:05.1]} 34... Qc3 {[%clk 0:00:49.7]} 35. Qb6
{[%clk 0:00:04.3]} 35... Qe5 {[%clk 0:00:46.6]} 36. Qe3 {[%clk 0:00:04.1]} 36...
Rc3 {[%clk 0:00:46.6]} 37. Qa7 {[%clk 0:00:02.7]} 37... Rdc7 {[%clk 0:00:35.5]}
38. Qb8+ {[%clk 0:00:02.2]} 38... Kg7 {[%clk 0:00:35.2]} 39. Bxb7 {[%clk
0:00:02.5]} 39... Rxg3+ {[%clk 0:00:28.1]} 40. fxg3 {[%clk 0:00:02.8]} 40...
Qxg3+ {[%clk 0:00:30]} 41. Kh1 {[%clk 0:00:03.1]} 41... Rc2 {[%clk 0:00:31.9]}
0-1

[Event "*** Titled Tuesday Blitz"]
[Site "Chess.com"]
[Date "2018.12.04"]
[Round "10"]
[White "lucasmito"]
[Black "ddtru"]
[Result "0-1"]
[WhiteElo "2329"]
[BlackElo "2316"]
[TimeControl "180+2"]
[EndTime "15:23:11 PST"]
[Termination "ddtru won by checkmate"]

1. e4 {[%clk 0:03:01.9]} 1... c5 {[%clk 0:03:00.9]} 2. Nf3 {[%clk 0:03:01.4]}
2... e6 {[%clk 0:03:01.8]} 3. Nc3 {[%clk 0:03:00.1]} 3... Nc6 {[%clk 0:03:02]}
4. d4 {[%clk 0:03:01.1]} 4... cxd4 {[%clk 0:03:02.5]} 5. Nxd4 {[%clk 0:03:03]}
5... Qc7 {[%clk 0:03:02.7]} 6. Qd3 {[%clk 0:02:54.9]} 6... Nf6 {[%clk
0:02:49.5]} 7. Ndb5 {[%clk 0:02:47.6]} 7... Qb8 {[%clk 0:02:48.6]} 8. Qg3 {[%clk
0:02:46]} 8... d6 {[%clk 0:02:03.1]} 9. Be3 {[%clk 0:02:31.2]} 9... a6 {[%clk
0:01:52.4]} 10. Bb6 {[%clk 0:02:15.3]} 10... axb5 {[%clk 0:01:52.6]} 11. Nxb5
{[%clk 0:02:17.2]} 11... Ra4 {[%clk 0:01:37.3]} 12. Bc7 {[%clk 0:01:59.1]} 12...
Qa8 {[%clk 0:01:14]} 13. Bxd6 {[%clk 0:01:57]} 13... Nxe4 {[%clk 0:00:35.5]} 14.
Nc7+ {[%clk 0:01:54.3]} 14... Kd7 {[%clk 0:00:35.6]} 15. Nxa8 {[%clk 0:01:30.2]}
15... Nxg3 {[%clk 0:00:34.8]} 16. Bxf8 {[%clk 0:01:06.3]} 16... Rxa8 {[%clk
0:00:34.1]} 17. Bxg7 {[%clk 0:00:44]} 17... Rg8 {[%clk 0:00:32.9]} 18. hxg3
{[%clk 0:00:45.9]} 18... Rxg7 {[%clk 0:00:33.3]} 19. a3 {[%clk 0:00:43.4]} 19...
Kc7 {[%clk 0:00:32.5]} 20. O-O-O {[%clk 0:00:41.8]} 20... b6 {[%clk 0:00:26.7]}
21. Bd3 {[%clk 0:00:41.6]} 21... f5 {[%clk 0:00:26.8]} 22. Rh6 {[%clk
0:00:41.2]} 22... Ne5 {[%clk 0:00:21.6]} 23. Rdh1 {[%clk 0:00:31.6]} 23... Nxd3+
{[%clk 0:00:21.6]} 24. cxd3 {[%clk 0:00:33.5]} 24... Bd7 {[%clk 0:00:20.7]} 25.
Rxh7 {[%clk 0:00:33.7]} 25... Rxh7 {[%clk 0:00:21.1]} 26. Rxh7 {[%clk
0:00:33.4]} 26... Rg8 {[%clk 0:00:21.4]} 27. Kd2 {[%clk 0:00:31.2]} 27... Kd6
{[%clk 0:00:22.6]} 28. Ke3 {[%clk 0:00:26.9]} 28... Bc6 {[%clk 0:00:23.8]} 29.
Rh2 {[%clk 0:00:25.7]} 29... Rg4 {[%clk 0:00:24.5]} 30. b3 {[%clk 0:00:12]}
30... Bd5 {[%clk 0:00:25.2]} 31. b4 {[%clk 0:00:11.6]} 31... Rg7 {[%clk
0:00:25]} 32. Ke2 {[%clk 0:00:11.9]} 32... Ra7 {[%clk 0:00:25.7]} 33. f3 {[%clk
0:00:11.6]} 33... Rxa3 {[%clk 0:00:26]} 34. Rh8 {[%clk 0:00:13.5]} 34... Ke5
{[%clk 0:00:24.7]} 35. Rh4 {[%clk 0:00:13.7]} 35... Ra2+ {[%clk 0:00:24.8]} 36.
Ke3 {[%clk 0:00:14.3]} 36... Rxg2 {[%clk 0:00:24.5]} 37. d4+ {[%clk 0:00:14]}
37... Kd6 {[%clk 0:00:25.3]} 38. Kf4 {[%clk 0:00:15.9]} 38... Rb2 {[%clk
0:00:24.9]} 39. Rh8 {[%clk 0:00:17.8]} 39... Rxb4 {[%clk 0:00:25.7]} 40. Rd8+
{[%clk 0:00:19]} 40... Ke7 {[%clk 0:00:26]} 41. Rb8 {[%clk 0:00:19.4]} 41...
Rxd4+ {[%clk 0:00:25]} 42. Ke5 {[%clk 0:00:20.4]} 42... Rb4 {[%clk 0:00:24.8]}
43. g4 {[%clk 0:00:20.3]} 43... fxg4 {[%clk 0:00:24.2]} 44. fxg4 {[%clk
0:00:21]} 44... Re4# {[%clk 0:00:24.3]} 0-1